[Event "Kragero Resort International 2022"]
[Site "Kragero"]
[Date "2022.02.25"]
[Round "5.13"]
[White "Sjoberg, Isak"]
[Black "Kaasen, Tor Fredrik"]
[Result "0-1"]
[ECO "B18"]
[WhiteElo "2322"]
[BlackElo "2458"]
[Annotator "ChessBase"]
[PlyCount "58"]
[EventDate "2022.02.23"]
[EventType "swiss"]
[EventCountry "NOR"]
[SourceTitle "playchess.com"]
[Source "ChessBase"]
[SourceQuality "1"]
[TimeControl "5400+30"]

1. e4 {[%emt 0:00:04]} c6 {[%emt 0:00:42]} 2. d4 {[%emt 0:00:24]} d5 {[%emt 0:01:33]} 3. Nc3 {[%emt 0:00:34]} dxe4 {[%emt 0:00:38]} 4. Nxe4 {[%emt 0:01:06]} Bf5 {[%emt 0:00:41]} 5. Ng3 {[%emt 0:00:08]} Bg6 {[%emt 0:00:07]} 6. N1e2 {[%emt 0:00:05]} Nd7 {[%emt 0:03:22]} 7. h4 {[%emt 0:04:17]} h6 {[%emt 0:01:08]} 8. Nf4 {[%emt 0:02:09]} Bh7 {[%emt 0:00:45]} 9. Bd3 {[%emt 0:02:17]} Bxd3 {[%emt 0:15:17]} 10. Qxd3 {[%emt 0:03:48]} Qc7 {[%emt 0:00:38]} 11. Bd2 {[%emt 0:20:08]} O-O-O {[%emt 0:02:44]} 12. O-O-O {[%emt 0:03:00]} Ngf6 {[%emt 0:01:28]} 13. Rhe1 {[%emt 0:07:41]} e6 {[%emt 0:01:12]} 14. Kb1 {[%emt 0:17:49]} c5 {[%emt 0:12:34]} 15. dxc5 {[%emt 0:04:07]} Bxc5 {[%emt 0:01:01]} 16. Qf3 {[%emt 0:02:16]} Ne5 {[%emt 0:06:24]} 17. Qe2 {[%emt 0:00:25]} Nc6 {[%emt 0:06:58]} 18. Nd3 {[%emt 0:02:55]} Bd6 {[%emt 0:18:55]} 19. Ne4 {[%emt 0:06:10]} Nd4 {[%emt 0:03:43]} 20. Qf1 {[%emt 0:00:51]} Qxc2+ {[%emt 0:03:56]} 21. Ka1 {[%emt 0:00:04]} Qa4 {[%emt 0:02:18]} 22. Kb1 {[%emt 0:08:07]} Nxe4 {[%emt 0:07:51]} 23. Rxe4 {[%emt 0:00:20]} Qc2+ {[%emt 0:00:14]} 24. Ka1 {[%emt 0:00:06]} Qc4 {[%emt 0:00:07]} 25. f3 {[%emt 0:03:15]} Bc7 {[%emt 0:02:18]} 26. Bf4 {[%emt 0:03:55]} Bxf4 {[%emt 0:00:41]} 27. Rxf4 {[%emt 0:00:02]} Kb8 {[%emt 0:00:38]} 28. Kb1 {[%emt 0:07:14]} Qc2+ {[%emt 0:00:59]} 29. Ka1 {[%emt 0:00:04]} Ne2 {[%emt 0:00:32]} 0-1

[Event "Kragero Resort International 2022"]
[Site "Kragero"]
[Date "2022.02.25"]
[Round "5.14"]
[White "Ingebretsen, Jens E"]
[Black "Osmak, Yuliia"]
[Result "1-0"]
[ECO "D02"]
[WhiteElo "2316"]
[BlackElo "2432"]
[Annotator "ChessBase"]
[PlyCount "79"]
[EventDate "2022.02.23"]
[EventType "swiss"]
[EventCountry "NOR"]
[SourceTitle "playchess.com"]
[Source "ChessBase"]
[SourceQuality "1"]
[TimeControl "5400+30"]

1. Nf3 {[%emt 0:00:03]} e6 {[%emt 0:07:57]} 2. d4 {[%emt 0:01:03]} Nf6 {[%emt 0:03:06]} 3. Bf4 {[%emt 0:00:33]} d5 {[%emt 0:00:30]} 4. e3 {[%emt 0:00:30]} Bd6 {[%emt 0:00:30]} 5. Nbd2 {[%emt 0:00:30]} O-O {[%emt 0:00:30]} 6. Bd3 {[%emt 0:00:30]} c5 {[%emt 0:00:30]} 7. c3 {[%emt 0:00:30]} Bxf4 {[%emt 0:00:30]} 8. exf4 {[%emt 0:00:30]} Qd6 {[%emt 0:00:30]} 9. g3 {[%emt 0:00:30]} b6 {[%emt 0:00:30]} 10. Qe2 {[%emt 0:00:30]} Nc6 {[%emt 0:00:30]} 11. dxc5 {[%emt 0:00:30]} bxc5 {[%emt 0:00:30]} 12. Rd1 {[%emt 0:00:30]} Qb8 {[%emt 0:00:30]} 13. Ne5 {[%emt 0:29:28]} Nxe5 {[%emt 0:36:57]} 14. fxe5 {[%emt 0:00:44]} Nd7 {[%emt 0:01:12]} 15. Nf3 {[%emt 0:02:50]} h6 {[%emt 0:00:55]} 16. O-O {[%emt 0:03:49]} a5 {[%emt 0:05:11]} 17. Rfe1 {[%emt 0:04:43]} Qb6 {[%emt 0:01:13]} 18. c4 {[%emt 0:06:06]} Bb7 {[%emt 0:12:33]} 19. cxd5 {[%emt 0:12:45]} Bxd5 {[%emt 0:02:24]} 20. Be4 {[%emt 0:04:47]} Qc6 {[%emt 0:01:23]} 21. Nd2 {[%emt 0:02:35]} Rab8 {[%emt 0:04:02]} 22. Nc4 {[%emt 0:01:46]} Bxc4 {[%emt 0:09:18]} 23. Bxc6 {[%emt 0:00:35]} Bxe2 {[%emt 0:00:03]} 24. Rxe2 {[%emt 0:00:24]} Nb6 {[%emt 0:00:03]} 25. Rc2 {[%emt 0:01:26]} c4 {[%emt 0:01:09]} 26. Rd6 {[%emt 0:02:26]} Rfc8 {[%emt 0:02:31]} 27. Kf1 {[%emt 0:00:51]} Rc7 {[%emt 0:01:34]} 28. Rcd2 {[%emt 0:03:04]} c3 {[%emt 0:04:43]} 29. bxc3 {[%emt 0:00:27]} Nc4 {[%emt 0:00:12]} 30. Rd8+ {[%emt 0:00:11]} Rxd8 {[%emt 0:01:36]} 31. Rxd8+ {[%emt 0:00:30]} Kh7 {[%emt 0:00:30]} 32. Be4+ {[%emt 0:00:30]} g6 {[%emt 0:00:30]} 33. f4 {[%emt 0:00:30]} Ne3+ {[%emt 0:00:30]} 34. Ke2 {[%emt 0:00:20]} Rxc3 {[%emt 0:00:00]} 35. Rd3 {[%emt 0:02:32]} Rxd3 {[%emt 0:00:41]} 36. Kxd3 {[%emt 0:01:59]} Nf1 {[%emt 0:00:50]} 37. Kc4 {[%emt 0:00:47]} Nxh2 {[%emt 0:00:59]} 38. Kb5 {[%emt 0:00:58]} Nf1 {[%emt 0:00:06]} 39. g4 {[%emt 0:01:49]} Nd2 {[%emt 0:00:42]} 40. Bd3 {[%emt 0:02:43]} 1-0

[Event "Kragero Resort International 2022"]
[Site "Kragero"]
[Date "2022.02.25"]
[Round "5.15"]
[White "Unneland, Mathias"]
[Black "Reimanis, Ritvars"]
[Result "1/2-1/2"]
[ECO "C67"]
[WhiteElo "2262"]
[BlackElo "2397"]
[Annotator "NA"]
[PlyCount "140"]
[EventDate "2022.02.23"]
[EventType "swiss"]
[EventCountry "NOR"]
[SourceTitle "playchess.com"]
[Source "ChessBase"]
[SourceQuality "1"]
[TimeControl "5400+30"]

1. e4 {[%emt 0:00:03]} e5 {[%emt 0:02:34]} 2. Nf3 {[%emt 0:00:20]} Nc6 {[%emt 0:00:06]} 3. Bb5 {[%emt 0:00:48]} Nf6 {[%emt 0:00:07]} 4. O-O {[%emt 0:01:28]} Nxe4 {[%emt 0:00:14]} 5. Re1 {[%emt 0:00:58]} Nd6 {[%emt 0:00:07]} 6. Nxe5 {[%emt 0:00:32]} Nxe5 {[%emt 0:00:40]} 7. Rxe5+ {[%emt 0:00:22]} Be7 {[%emt 0:00:03]} 8. Bf1 {[%emt 0:01:03]} O-O {[%emt 0:00:07]} 9. d4 {[%emt 0:00:38]} Ne8 {[%emt 0:00:27]} 10. d5 {[%emt 0:02:32]} Bc5 {[%emt 0:00:06]} 11. Re1 {[%emt 0:01:36]} Qf6 {[%emt 0:02:04]} 12. Be3 {[%emt 0:05:09]} Bxe3 {[%emt 0:04:39]} 13. Rxe3 {[%emt 0:00:14]} Qxb2 {[%emt 0:11:58]} 14. Nc3 {[%emt 0:00:50]} Qb6 {[%emt 0:00:14]} 15. Rb1 {[%emt 0:03:36]} Qc5 {[%emt 0:00:26]} (15... Qf6 $11 {might be stronger.}) 16. Rb5 {[%emt 0:23:33]} Qd6 {[%emt 0:00:07]} 17. Ne4 {[%emt 0:00:06]} Qf4 {[%emt 0:01:56]} 18. g3 {[%emt 0:09:16]} Qh6 {[%emt 0:00:16]} 19. d6 {[%emt 0:01:15]} Nxd6 {[%emt 0:25:12]} 20. Rh5 {[%emt 0:02:50]} Qg6 {[%emt 0:01:15]} 21. Nxd6 {[%emt 0:05:00]} Qxd6 {[%emt 0:00:38]} 22. Qxd6 {[%emt 0:00:21]} cxd6 {[%emt 0:00:10]} 23. Re7 {[%emt 0:08:00]} g6 {[%emt 0:05:35]} 24. Rd5 {[%emt 0:00:52]} Rd8 {[%emt 0:01:19]} 25. Rxd6 {[%emt 0:01:38]} Kf8 {[%emt 0:00:08]} 26. Re4 {[%emt 0:01:47]} Re8 $15 {[%emt 0:01:00]} 27. Rf4 {[%emt 0:01:55]} Re6 {[%emt 0:00:46]} 28. Rd1 {[%emt 0:01:06]} Re7 {[%emt 0:28:22]} 29. Bc4 {[%emt 0:01:34]} Rb8 {[%emt 0:03:07]} 30. a4 {[%emt 0:01:39]} b6 {[%emt 0:00:46]} 31. Rfd4 {[%emt 0:00:48]} Rb7 {[%emt 0:01:12]} 32. f4 {[%emt 0:04:15]} Rc7 {[%emt 0:00:10]} 33. f5 {[%emt 0:00:29]} gxf5 {[%emt 0:01:45]} 34. Bd3 {[%emt 0:02:10]} Re5 {[%emt 0:00:14]} 35. Rf1 {[%emt 0:00:43]} d5 {[%emt 0:00:45]} 36. Rh4 {[%emt 0:00:40]} Kg7 {[%emt 0:01:35]} 37. Rh5 {[%emt 0:04:39]} Rce7 {[%emt 0:01:49]} 38. Kf2 {[%emt 0:00:49]} h6 {[%emt 0:00:27]} 39. Rh4 {[%emt 0:00:33]} Bd7 {[%emt 0:00:43]} 40. Ra1 {[%emt 0:00:48]} Be8 {[%emt 0:01:25]} 41. Rb4 {[%emt 0:00:21]} d4 {[%emt 0:02:39]} 42. Rxd4 {[%emt 0:00:17]} Rc7 {[%emt 0:00:01]} 43. Rb1 {[%emt 0:02:32]} Rc3 {[%emt 0:01:06]} 44. Rb3 {[%emt 0:00:59]} Rcc5 {[%emt 0:00:23]} 45. Rbb4 {[%emt 0:00:53]} Bc6 {[%emt 0:00:12]} 46. Rh4 {[%emt 0:00:27]} Be4 {[%emt 0:00:25]} 47. Ke3 {[%emt 0:03:21]} Bxd3+ {[%emt 0:01:04]} 48. Kxd3 {[%emt 0:00:05]} Re1 {[%emt 0:01:13]} 49. Rbc4 {[%emt 0:01:44]} Ra5 {[%emt 0:01:41]} 50. Kd2 {[%emt 0:01:13]} Ree5 {[%emt 0:00:15]} 51. Kd3 {[%emt 0:00:39]} Kg6 {[%emt 0:00:28]} 52. Kc3 {[%emt 0:00:51]} Re3+ {[%emt 0:00:19]} 53. Kb2 {[%emt 0:01:16]} Rae5 {[%emt 0:00:08]} 54. Rc7 {[%emt 0:01:52]} R3e4 {[%emt 0:01:25]} 55. Rf4 {[%emt 0:01:00]} Re7 {[%emt 0:01:17]} 56. Rxe4 {[%emt 0:00:32]} Rxc7 {[%emt 0:00:01]} 57. Rd4 {[%emt 0:00:28]} Re7 {[%emt 0:00:11]} 58. Kb3 {[%emt 0:01:29]} Kg5 {[%emt 0:00:59]} 59. c3 {[%emt 0:00:44]} a5 {[%emt 0:00:52]} 60. Kc4 {[%emt 0:00:55]} Re5 {[%emt 0:00:25]} 61. Rd5 {[%emt 0:00:32]} Rxd5 {[%emt 0:00:39]} 62. Kxd5 {[%emt 0:00:05]} f4 {[%emt 0:00:00]} 63. gxf4+ {[%emt 0:00:34]} Kxf4 {[%emt 0:00:01]} 64. Kc6 {[%emt 0:00:11]} Ke4 {[%emt 0:00:51]} 65. Kxb6 {[%emt 0:00:22]} Kd5 {[%emt 0:01:16]} 66. Kb5 {[%emt 0:02:06]} f5 {[%emt 0:00:08]} 67. c4+ {[%emt 0:00:05]} Ke6 {[%emt 0:00:46]} 68. Kb6 {[%emt 0:00:07]} Kd7 {[%emt 0:00:34]} 69. Kb7 {[%emt 0:00:09]} Kd6 {[%emt 0:00:12]} 70. Kb6 {[%emt 0:00:08]} Kd7 {[%emt 0:00:02]} 1/2-1/2

[Event "Kragero Resort International 2022"]
[Site "Kragero"]
[Date "2022.02.25"]
[Round "5.16"]
[White "Mikalsen, Erlend"]
[Black "Gjestemoen-VonHirsch, Andre"]
[Result "0-1"]
[ECO "B87"]
[WhiteElo "2368"]
[BlackElo "2243"]
[Annotator "ChessBase"]
[PlyCount "58"]
[EventDate "2022.02.23"]
[EventType "swiss"]
[EventCountry "NOR"]
[SourceTitle "playchess.com"]
[Source "ChessBase"]
[SourceQuality "1"]
[TimeControl "5400+30"]

1. e4 {[%emt 0:03:26]} c5 {[%emt 0:00:10]} 2. Nf3 {[%emt 0:00:04]} d6 {[%emt 0:00:04]} 3. d4 {[%emt 0:00:02]} cxd4 {[%emt 0:00:07]} 4. Nxd4 {[%emt 0:00:02]} Nf6 {[%emt 0:00:08]} 5. Nc3 {[%emt 0:00:03]} a6 {[%emt 0:00:05]} 6. Bc4 {[%emt 0:00:02]} e6 {[%emt 0:00:08]} 7. Bb3 {[%emt 0:00:03]} b5 {[%emt 0:00:05]} 8. Bg5 {[%emt 0:00:03]} Be7 {[%emt 0:01:56]} 9. Qf3 {[%emt 0:00:05]} Qc7 {[%emt 0:01:11]} 10. O-O-O {[%emt 0:00:05]} O-O {[%emt 0:11:27]} 11. Bxf6 {[%emt 0:11:05]} Bxf6 {[%emt 0:08:00]} 12. e5 {[%emt 0:00:31]} Bb7 {[%emt 0:13:54]} 13. exd6 {[%emt 0:01:52]} Qb6 {[%emt 0:01:00]} 14. Qe3 {[%emt 0:01:35]} Rd8 {[%emt 0:07:26]} 15. Ne4 {[%emt 0:00:37]} Nd7 {[%emt 0:13:55]} 16. f4 {[%emt 0:08:24]} Bxe4 {[%emt 0:01:56]} 17. Qxe4 {[%emt 0:00:03]} Nc5 {[%emt 0:00:19]} 18. Qe3 {[%emt 0:00:50]} Rxd6 {[%emt 0:00:29]} 19. Nf3 {[%emt 0:01:29]} Bxb2+ {[%emt 0:06:21]} 20. Kb1 {[%emt 0:00:10]} Bf6 {[%emt 0:02:41]} 21. Ne5 {[%emt 0:00:47]} Rad8 {[%emt 0:02:03]} 22. Rxd6 {[%emt 0:02:12]} Qxd6 {[%emt 0:00:11]} 23. Qe2 {[%emt 0:10:13]} Qd4 {[%emt 0:04:36]} 24. Re1 {[%emt 0:00:59]} Qxf4 {[%emt 0:04:24]} 25. Nxf7 {[%emt 0:00:27]} Kxf7 {[%emt 0:00:18]} 26. Qh5+ {[%emt 0:00:04]} Kg8 {[%emt 0:02:57]} 27. Qxc5 {[%emt 0:00:04]} Qd2 {[%emt 0:00:24]} 28. Rc1 {[%emt 0:00:04]} Qxg2 {[%emt 0:02:39]} 29. Qc6 {[%emt 0:00:37]} Qxc6 {[%emt 0:00:06]} 0-1

[Event "Kragero Resort International 2022"]
[Site "Kragero"]
[Date "2022.02.25"]
[Round "5.25"]
[White "Westrum, Kim Roger Hansen"]
[Black "Grave, Jacob Templen"]
[Result "1/2-1/2"]
[ECO "B10"]
[WhiteElo "1967"]
[BlackElo "2267"]
[Annotator "ChessBase"]
[PlyCount "79"]
[EventDate "2022.02.23"]
[EventType "swiss"]
[EventCountry "NOR"]
[SourceTitle "playchess.com"]
[Source "ChessBase"]
[SourceQuality "1"]
[TimeControl "5400+30"]

1. e4 {[%emt 0:00:17]} c6 {[%emt 0:00:19]} 2. c4 {[%emt 0:00:15]} d5 {[%emt 0:00:14]} 3. cxd5 {[%emt 0:00:10]} cxd5 {[%emt 0:00:06]} 4. exd5 {[%emt 0:00:07]} Nf6 {[%emt 0:00:17]} 5. Nc3 {[%emt 0:00:12]} Nxd5 {[%emt 0:00:23]} 6. Bc4 {[%emt 0:00:12]} Nb6 {[%emt 0:19:01]} 7. Bb3 {[%emt 0:00:11]} g6 {[%emt 0:00:15]} 8. Qf3 {[%emt 0:02:39]} e6 {[%emt 0:01:57]} 9. Nge2 {[%emt 0:00:15]} Bg7 {[%emt 0:03:16]} 10. d4 {[%emt 0:00:12]} O-O {[%emt 0:04:59]} 11. O-O {[%emt 0:00:12]} Bd7 {[%emt 0:08:13]} 12. Qg3 {[%emt 0:03:57]} Bc6 {[%emt 0:02:55]} 13. h4 {[%emt 0:01:38]} N8d7 {[%emt 0:03:12]} 14. h5 {[%emt 0:09:58]} Nf6 {[%emt 0:02:55]} 15. hxg6 {[%emt 0:10:06]} hxg6 {[%emt 0:00:14]} 16. Bg5 {[%emt 0:00:39]} Qd7 {[%emt 0:06:40]} 17. Bxf6 {[%emt 0:15:45]} Bxf6 {[%emt 0:00:08]} 18. Nf4 {[%emt 0:00:06]} Rfe8 {[%emt 0:09:25]} 19. Rfe1 {[%emt 0:00:45]} Bg7 {[%emt 0:03:23]} 20. Qh3 {[%emt 0:16:12]} Qd6 {[%emt 0:14:03]} 21. g3 {[%emt 0:00:47]} Nd5 {[%emt 0:00:57]} 22. Ncxd5 {[%emt 0:09:57]} exd5 {[%emt 0:00:07]} 23. Qg2 {[%emt 0:08:55]} Rxe1+ {[%emt 0:01:45]} 24. Rxe1 {[%emt 0:00:05]} Rd8 {[%emt 0:00:05]} 25. Rd1 {[%emt 0:01:53]} a5 {[%emt 0:01:25]} 26. a3 {[%emt 0:01:21]} Qd7 {[%emt 0:01:37]} 27. Qf3 {[%emt 0:01:48]} Qf5 {[%emt 0:01:38]} 28. Kg2 {[%emt 0:01:12]} a4 {[%emt 0:02:36]} 29. Ba2 {[%emt 0:00:34]} Qc2 {[%emt 0:01:03]} 30. Qe2 {[%emt 0:00:13]} Qf5 {[%emt 0:00:08]} 31. Qf3 {[%emt 0:00:47]} g5 {[%emt 0:02:29]} 32. Nh5 {[%emt 0:00:57]} Qxf3+ {[%emt 0:01:51]} 33. Kxf3 {[%emt 0:00:01]} Bh8 {[%emt 0:00:07]} 34. g4 {[%emt 0:03:30]} Re8 {[%emt 0:01:09]} 35. Ng3 {[%emt 0:00:22]} Bf6 {[%emt 0:01:02]} 36. Bb1 {[%emt 0:02:59]} Bb5 {[%emt 0:00:47]} 37. Ba2 {[%emt 0:00:17]} Bc6 {[%emt 0:00:55]} 38. Bb1 {[%emt 0:00:05]} Re6 {[%emt 0:00:40]} 39. Bf5 {[%emt 0:02:25]} Re8 {[%emt 0:01:14]} 40. Bb1 {[%emt 0:00:20]} 1/2-1/2

[Event "Kragero Resort International 2022"]
[Site "Kragero"]
[Date "2022.02.25"]
[Round "5.26"]
[White "Lye, Sverre"]
[Black "Doluhanova, Evgeniya"]
[Result "1/2-1/2"]
[ECO "C67"]
[WhiteElo "1917"]
[BlackElo "2255"]
[Annotator "ChessBase"]
[PlyCount "66"]
[EventDate "2022.02.23"]
[EventType "swiss"]
[EventCountry "NOR"]
[SourceTitle "playchess.com"]
[Source "ChessBase"]
[SourceQuality "1"]
[TimeControl "5400+30"]

1. e4 {[%emt 0:00:03]} e5 {[%emt 0:01:36]} 2. Nf3 {[%emt 0:00:03]} Nc6 {[%emt 0:00:05]} 3. Bb5 {[%emt 0:00:27]} Nf6 {[%emt 0:00:04]} 4. O-O {[%emt 0:00:18]} Nxe4 {[%emt 0:00:16]} 5. d4 {[%emt 0:00:26]} Nd6 {[%emt 0:00:14]} 6. Bxc6 {[%emt 0:00:10]} dxc6 {[%emt 0:00:04]} 7. dxe5 {[%emt 0:01:01]} Nf5 {[%emt 0:00:04]} 8. Qxd8+ {[%emt 0:01:02]} Kxd8 {[%emt 0:00:06]} 9. Rd1+ {[%emt 0:02:33]} Ke8 {[%emt 0:00:06]} 10. Nc3 {[%emt 0:00:14]} Be7 {[%emt 0:00:06]} 11. Bg5 {[%emt 0:00:18]} Bxg5 {[%emt 0:03:48]} 12. Nxg5 {[%emt 0:00:06]} h6 {[%emt 0:05:21]} 13. Nf3 {[%emt 0:00:21]} Be6 {[%emt 0:01:11]} 14. Rd2 {[%emt 0:05:33]} Rd8 {[%emt 0:01:12]} 15. Rad1 {[%emt 0:02:22]} Rxd2 {[%emt 0:00:42]} 16. Rxd2 {[%emt 0:00:16]} Ne7 {[%emt 0:01:07]} 17. Ne4 {[%emt 0:05:43]} b6 {[%emt 0:07:06]} 18. Nd4 {[%emt 0:03:11]} a6 {[%emt 0:00:40]} 19. Nxe6 {[%emt 0:09:29]} fxe6 {[%emt 0:06:20]} 20. f4 {[%emt 0:02:11]} Rf8 {[%emt 0:00:44]} 21. g3 {[%emt 0:00:45]} c5 {[%emt 0:01:46]} 22. h4 {[%emt 0:02:49]} Nc6 {[%emt 0:11:45]} 23. Kg2 {[%emt 0:02:20]} Rf7 {[%emt 0:00:26]} 24. c3 {[%emt 0:01:06]} a5 {[%emt 0:02:41]} 25. a4 {[%emt 0:07:00]} Ke7 {[%emt 0:06:10]} 26. Kh3 {[%emt 0:02:00]} Ke8 {[%emt 0:01:13]} 27. Kg4 {[%emt 0:02:00]} Rf5 {[%emt 0:01:45]} 28. Rd1 {[%emt 0:10:15]} Ke7 {[%emt 0:03:39]} 29. Rd2 {[%emt 0:01:33]} Ke8 {[%emt 0:01:34]} 30. Nf2 {[%emt 0:03:37]} Rf7 {[%emt 0:02:43]} 31. Ne4 {[%emt 0:03:40]} Rf5 {[%emt 0:00:25]} 32. Rd1 {[%emt 0:01:52]} Ke7 {[%emt 0:01:20]} 33. Rd2 {[%emt 0:01:20]} Ke8 {[%emt 0:01:28]} 1/2-1/2

[Event "Kragero Resort International 2022"]
[Site "Kragero"]
[Date "2022.02.25"]
[Round "5.27"]
[White "Altarbosh, Ward"]
[Black "Austad, Eirik Strom"]
[Result "1-0"]
[ECO "C86"]
[WhiteElo "2221"]
[BlackElo "2055"]
[Annotator "ChessBase"]
[PlyCount "73"]
[EventDate "2022.02.23"]
[EventType "swiss"]
[EventCountry "NOR"]
[SourceTitle "playchess.com"]
[Source "ChessBase"]
[SourceQuality "1"]
[TimeControl "5400+30"]

1. e4 {[%emt 0:00:20]} e5 {[%emt 0:00:10]} 2. Nf3 {[%emt 0:00:05]} Nc6 {[%emt 0:00:05]} 3. Bb5 {[%emt 0:00:09]} a6 {[%emt 0:00:23]} 4. Ba4 {[%emt 0:00:06]} Nf6 {[%emt 0:00:12]} 5. O-O {[%emt 0:00:13]} Be7 {[%emt 0:00:05]} 6. Qe2 {[%emt 0:00:09]} b5 {[%emt 0:01:14]} 7. Bb3 {[%emt 0:00:05]} d6 {[%emt 0:02:04]} 8. c3 {[%emt 0:00:34]} O-O {[%emt 0:01:09]} 9. Rd1 Be6 {[%emt 0:15:10]} 10. Bxe6 {[%emt 0:00:43]} fxe6 {[%emt 0:00:06]} 11. d4 {[%emt 0:00:04]} Qe8 {[%emt 0:10:28]} 12. a4 {[%emt 0:07:26]} exd4 {[%emt 0:18:29]} 13. cxd4 {[%emt 0:00:27]} Na5 {[%emt 0:01:46]} 14. Bg5 {[%emt 0:08:58]} d5 {[%emt 0:06:26]} 15. axb5 {[%emt 0:06:47]} axb5 {[%emt 0:00:48]} 16. Nbd2 {[%emt 0:00:07]} Bb4 {[%emt 0:01:27]} 17. e5 {[%emt 0:04:49]} Nh5 {[%emt 0:01:35]} 18. Nf1 {[%emt 0:00:04]} Nf4 {[%emt 0:02:31]} 19. Bxf4 {[%emt 0:00:18]} Rxf4 {[%emt 0:00:04]} 20. Ng3 {[%emt 0:00:14]} Qd7 {[%emt 0:02:21]} 21. Ne1 {[%emt 0:00:24]} Rff8 {[%emt 0:01:28]} 22. Nd3 {[%emt 0:00:33]} Be7 {[%emt 0:00:29]} 23. Qg4 {[%emt 0:00:01]} Qe8 {[%emt 0:09:00]} 24. Qxe6+ {[%emt 0:05:58]} Qf7 {[%emt 0:00:05]} 25. Qd7 {[%emt 0:03:21]} c6 {[%emt 0:01:35]} 26. f4 {[%emt 0:10:44]} Rfd8 {[%emt 0:02:00]} 27. Qf5 {[%emt 0:00:11]} Nb3 {[%emt 0:01:01]} 28. Rxa8 {[%emt 0:31:56]} Rxa8 {[%emt 0:00:04]} 29. Nc1 {[%emt 0:00:03]} Nxd4 {[%emt 0:04:02]} 30. Qxf7+ {[%emt 0:00:08]} Kxf7 {[%emt 0:00:04]} 31. Rxd4 {[%emt 0:00:03]} Bc5 {[%emt 0:00:13]} 32. Nb3 {[%emt 0:00:07]} Bxd4+ {[%emt 0:01:19]} 33. Nxd4 {[%emt 0:00:01]} Ra4 {[%emt 0:00:16]} 34. Ngf5 {[%emt 0:08:46]} c5 {[%emt 0:01:03]} 35. e6+ {[%emt 0:01:16]} Ke8 {[%emt 0:05:22]} 36. Nxb5 {[%emt 0:00:12]} Re4 {[%emt 0:02:01]} 37. Nbd6+ {[%emt 0:00:15]} 1-0

[Event "Kragero Resort International 2022"]
[Site "Kragero"]
[Date "2022.02.25"]
[Round "5.28"]
[White "Manukyan, Hayk T."]
[Black "Nikolic, Vladan"]
[Result "0-1"]
[ECO "A06"]
[WhiteElo "1905"]
[BlackElo "2218"]
[Annotator "ChessBase"]
[PlyCount "102"]
[EventDate "2022.02.23"]
[EventType "swiss"]
[EventCountry "NOR"]
[SourceTitle "playchess.com"]
[Source "ChessBase"]
[SourceQuality "1"]
[TimeControl "5400+30"]

1. Nf3 {[%emt 0:00:46]} d5 {[%emt 0:00:16]} 2. b3 {[%emt 0:01:21]} c5 {[%emt 0:02:01]} 3. e3 {[%emt 0:01:05]} a6 {[%emt 0:00:08]} 4. Bb2 {[%emt 0:01:50]} Nc6 {[%emt 0:00:22]} 5. Be2 {[%emt 0:00:43]} d4 {[%emt 0:03:12]} 6. e4 {[%emt 0:25:30]} Nf6 {[%emt 0:04:03]} 7. d3 {[%emt 0:01:47]} e5 {[%emt 0:00:56]} 8. O-O {[%emt 0:00:36]} Be7 {[%emt 0:01:09]} 9. Nbd2 {[%emt 0:04:14]} b5 {[%emt 0:01:45]} 10. h3 {[%emt 0:01:52]} O-O {[%emt 0:03:09]} 11. Nh2 {[%emt 0:04:28]} Be6 {[%emt 0:04:40]} 12. Bc1 {[%emt 0:15:26]} Rc8 {[%emt 0:02:34]} 13. Ng4 {[%emt 0:08:37]} Nd7 {[%emt 0:01:05]} 14. Nxe5 {[%emt 0:04:03]} Ndxe5 {[%emt 0:08:48]} 15. f4 {[%emt 0:00:09]} c4 {[%emt 0:06:47]} 16. fxe5 {[%emt 0:01:12]} cxd3 {[%emt 0:05:39]} 17. cxd3 {[%emt 0:02:07]} Nxe5 {[%emt 0:06:41]} 18. Nf3 {[%emt 0:00:25]} Nxf3+ {[%emt 0:01:31]} 19. Bxf3 {[%emt 0:00:25]} Bg5 {[%emt 0:02:25]} 20. Bg4 {[%emt 0:04:17]} Rxc1 {[%emt 0:03:16]} 21. Rxc1 {[%emt 0:00:09]} Bxc1 {[%emt 0:00:05]} 22. Qxc1 {[%emt 0:00:06]} Bxg4 {[%emt 0:00:19]} 23. hxg4 {[%emt 0:00:02]} Qc8 {[%emt 0:01:47]} 24. Qxc8 {[%emt 0:02:22]} Rxc8 {[%emt 0:00:06]} 25. Rf5 {[%emt 0:00:01]} Kf8 {[%emt 0:04:15]} 26. Rd5 {[%emt 0:00:37]} Rc1+ {[%emt 0:00:28]} 27. Kh2 {[%emt 0:00:15]} Ra1 {[%emt 0:00:10]} 28. Rxd4 {[%emt 0:01:53]} Rxa2 {[%emt 0:00:08]} 29. Rd8+ {[%emt 0:07:09]} Ke7 {[%emt 0:01:17]} 30. Ra8 {[%emt 0:00:02]} g6 {[%emt 0:17:13]} 31. g5 {[%emt 0:00:37]} Rd2 {[%emt 0:01:46]} 32. Ra7+ {[%emt 0:05:42]} Kf8 {[%emt 0:00:23]} 33. Ra8+ {[%emt 0:00:42]} Kg7 {[%emt 0:00:06]} 34. Rd8 {[%emt 0:00:03]} Rb2 {[%emt 0:01:55]} 35. d4 {[%emt 0:06:55]} Rxb3 {[%emt 0:00:08]} 36. Ra8 {[%emt 0:00:30]} Rb4 {[%emt 0:01:28]} 37. Rxa6 {[%emt 0:00:31]} Rxd4 {[%emt 0:00:09]} 38. Rb6 {[%emt 0:00:28]} b4 {[%emt 0:02:13]} 39. e5 {[%emt 0:00:31]} Rg4 {[%emt 0:01:32]} 40. e6 {[%emt 0:00:30]} fxe6 {[%emt 0:00:14]} 41. Rxe6 {[%emt 0:00:25]} Rxg5 {[%emt 0:00:06]} 42. Rb6 {[%emt 0:00:29]} Rg4 {[%emt 0:00:07]} 43. Kh3 {[%emt 0:00:27]} h5 {[%emt 0:00:32]} 44. Kh2 {[%emt 0:00:30]} Kh6 {[%emt 0:00:09]} 45. Rb5 {[%emt 0:00:25]} Kg7 {[%emt 0:00:19]} 46. Rb6 {[%emt 0:00:07]} Kf7 {[%emt 0:00:08]} 47. Kg1 {[%emt 0:01:06]} Ke7 {[%emt 0:00:07]} 48. Kf2 {[%emt 0:00:11]} Kd7 {[%emt 0:00:07]} 49. Kf3 {[%emt 0:00:14]} Kc7 {[%emt 0:00:08]} 50. Rb5 {[%emt 0:00:05]} Kc6 {[%emt 0:00:05]} 51. Rb8 {[%emt 0:00:05]} Kc5 {[%emt 0:00:08]} 0-1